fUSD/lending_fUSD_20260418
["ID","MTS","AMOUNT","RATE_DAILY","PERIOD"]
[420689209,1776458011552,-607.0,0.00042466,120]
[420689210,1776458011564,-607.0,0.00042466,120]
[420689211,1776458011573,-607.0,0.00042466,120]
[420689212,1776458011584,-607.0,0.00042466,120]
[420689213,1776458011593,-607.0,0.00042466,120]
[420689214,1776458011603,-607.0,0.00042466,120]
[420689215,1776458011612,-607.0,0.00042466,120]
[420689216,1776458011621,-607.0,0.00042466,120]
[420689217,1776458011630,-607.0,0.00042466,120]
[420689218,1776458011640,-607.0,0.00042466,120]
[420689219,1776458011649,-607.0,0.00042466,120]
[420689220,1776458011659,-607.0,0.00042466,120]
[420689221,1776458011668,-607.0,0.00042466,120]
[420689222,1776458011677,-607.0,0.00042466,120]
[420689223,1776458011687,-607.0,0.00042466,120]
[420689224,1776458011697,-607.0,0.00042466,120]
[420689225,1776458011706,-617.6167396,0.00042466,120]
[420689226,1776458011715,-284.34774268,0.00042466,120]
[420689227,1776458011725,-184.32533186,0.00042466,120]
[420689228,1776458011734,-155.11488082,0.00042466,120]
[420689229,1776458011744,-4156.4156,0.00042471,2]
[420689230,1776458011753,-466.36337932,0.00042473,120]
[420689231,1776458011763,-200.0,0.0004248,98]
[420689232,1776458011772,-1101.33,0.00042481,120]
[420689233,1776458011782,-442.56670589,0.00042491,120]
[420689234,1776458011795,-300.51399991,0.00042496,120]
[420689235,1776458011805,-213.26080701,0.00042496,30]
[420689236,1776458011814,-500.0,0.000425,45]
[420689237,1776458011824,-500.0,0.000425,45]
[420689238,1776458011835,-500.0,0.000425,45]
[420689239,1776458011844,-500.0,0.000425,45]
[420689240,1776458011854,-500.0,0.000425,45]
[420689241,1776458011863,-500.0,0.000425,45]
[420689242,1776458011873,-500.0,0.000425,45]
[420689243,1776458011882,-500.0,0.000425,45]
[420689244,1776458011892,-500.0,0.000425,45]
[420689245,1776458011901,-500.0,0.000425,45]
[420689246,1776458011910,-500.0,0.000425,45]
[420689247,1776458011920,-500.0,0.000425,45]
[420689248,1776458011929,-500.0,0.000425,45]
[420689249,1776458011938,-500.0,0.000425,45]
[420689250,1776458011948,-500.0,0.000425,45]
[420689251,1776458011957,-500.0,0.000425,45]
[420689252,1776458011966,-1763.65999031,0.000425,60]
[420689253,1776458011976,-500.0,0.000425,45]
[420689254,1776458011985,-500.0,0.000425,45]
[420689255,1776458011994,-500.0,0.000425,45]
[420689256,1776458012004,-500.0,0.000425,45]
[420689257,1776458012155,-500.0,0.000425,45]
[420689258,1776458012165,-500.0,0.000425,45]
[420689259,1776458012174,-500.0,0.000425,45]
[420689260,1776458012185,-500.0,0.000425,45]
[420689261,1776458012195,-500.0,0.000425,45]
[420689262,1776458012204,-1000.0,0.000425,2]
[420689263,1776458012213,-30000.0,0.000425,30]
[420689264,1776458012223,-1000.0,0.000425,120]
[420689265,1776458012233,-25302.96791131,0.000425,2]
[420689266,1776458012243,-1000.0,0.000425,120]
[420689267,1776458012252,-1766.39312455,0.000425,120]
[420689268,1776458012261,-500.0,0.000425,120]
[420689269,1776458012274,-5020.24612289,0.000425,15]
[420689270,1776458012284,-12684.30679216,0.000425,120]
[420689271,1776458012293,-126774.49970634,0.000425,120]
[420689272,1776458014677,-296.667272,0.00042466,120]
[420689273,1776458014687,-29238.22029366,0.000425,120]
[420689274,1776458014698,-2826.49173199,0.000425,120]
[420689275,1776458014707,-205.81934357,0.000425,45]
[420689276,1776458014716,-2000.0,0.000425,110]
[420689277,1776458014726,-198.0,0.000425,120]
[420689278,1776458015195,-500.0,0.000425,120]
[420689279,1776458015227,-1111.30620232,0.00042503,120]
[420689280,1776458015237,-157.0997553,0.00042505,2]
[420689281,1776458015246,-2000.0,0.0004252,120]
[420689282,1776458015256,-300.0,0.00042521,120]
[420689283,1776458015265,-155.72349979,0.00042527,120]
[420689284,1776458015275,-192.8035424,0.00042527,120]
[420689285,1776458015284,-1104.60111672,0.00042534,120]
[420689286,1776458015294,-1023.18498993,0.0004254,120]
[420689287,1776458015306,-3727.33961936,0.00042545,120]
[420689288,1776458015316,-7386.42,0.00042546,120]
[420689289,1776458015325,-2777.14,0.00042546,120]
[420689290,1776458015335,-150.0,0.00042549,120]
[420689291,1776458015345,-175.33395278,0.00042554,120]
[420689292,1776458015354,-266.66666668,0.00042555,30]
[420689293,1776458015365,-266.66666666,0.00042555,30]
[420689294,1776458015375,-266.66666666,0.00042555,30]
[420689295,1776458015386,-570.63894469,0.00042559,120]
[420689296,1776458015398,-150.0,0.00042567,90]
[420689297,1776458015408,-150.0,0.00042567,90]
[420689298,1776458015419,-184.29,0.00042581,30]
[420689299,1776458015430,-273.61,0.00042581,30]
[420689300,1776458015440,-2000.0,0.00042581,4]
[420689301,1776458015450,-10000.0,0.00042581,4]
[420689302,1776458015459,-1101.33,0.00042581,120]
[420689303,1776458015469,-300.0,0.00042593,2]
[420689304,1776458015479,-300.0,0.00042593,2]
[420689305,1776458015488,-300.0,0.00042593,2]
[420689306,1776458015499,-300.0,0.00042593,2]
[420689307,1776458015510,-300.0,0.00042593,2]
[420689308,1776458015519,-300.0,0.00042593,2]
[420689309,1776458015529,-300.19,0.00042593,2]
[420689310,1776458015539,-1882.95086993,0.000426,120]
[420689311,1776458015548,-20500.0,0.000426,14]
[420689312,1776458015559,-10000.0,0.00042603,30]
[420689313,1776458015570,-182.2336746,0.00042619,120]
[420689314,1776458015580,-229.21182405,0.00042622,120]
[420689315,1776458015589,-770.45601862,0.00042623,120]
[420689316,1776458015599,-1225.55624479,0.00042624,120]
[420689317,1776458015608,-214.1,0.00042627,120]
[420689318,1776458015618,-92.281101,0.0004263,120]
[420689319,1776458015654,-1802.97179547,0.0004263,120]
[420689335,1776458499666,-302.0,0.000223,120]
[420689336,1776458499694,-1308.0,0.0002737,30]
[420689337,1776458499722,-1111.11,0.0003,30]
[420689338,1776458499746,-211.0,0.00030137,120]
[420689339,1776458499771,-1111.11,0.00030937,30]
[420689340,1776458499797,-1111.11,0.00031875,30]
[420689341,1776458499821,-1011.0,0.00031998,30]
[420689342,1776458499846,-1170.0,0.00032007,30]
[420689343,1776458499871,-273.0,0.00032007,30]
[420689344,1776458499895,-211.0,0.00032007,30]
[420689345,1776458499919,-572.0,0.00032336,30]
[420689346,1776458499943,-1126.0,0.00032336,30]
[420689347,1776458499967,-1111.11,0.00032812,120]
[420689348,1776458499990,-250.0,0.00032867,60]
[420689349,1776458500014,-500.0,0.00032867,60]
[420689350,1776458500037,-250.0,0.00032867,60]
[420689351,1776458500062,-500.0,0.00032867,60]
[420689352,1776458500088,-500.0,0.00032867,60]
[420689353,1776458500113,-500.0,0.00032867,60]
[420689354,1776458500138,-500.0,0.00032867,60]
[420689355,1776458500165,-397.0397837,0.00032867,60]
[420689356,1776458500190,-500.0,0.00032867,60]
[420689357,1776458500214,-548.4073818,0.00032867,60]
[420689358,1776458500238,-250.0,0.00032867,60]
[420689359,1776458500263,-250.0,0.00032867,60]
[420689360,1776458500287,-250.0,0.00032867,60]
[420689361,1776458500311,-209.129946,0.00032867,60]
[420689362,1776458500336,-1011.0,0.00032998,30]
[420689363,1776458500361,-1170.0,0.00033007,30]
[420689364,1776458500384,-273.0,0.00033007,30]
[420689365,1776458500409,-211.0,0.00033007,30]
[420689366,1776458500434,-572.0,0.00033336,30]
[420689367,1776458500459,-1126.0,0.00033336,30]
[420689368,1776458500486,-1000.0,0.00033555,120]
[420689369,1776458500952,-1111.11,0.0003375,120]
[420689370,1776458500980,-1011.0,0.00033998,30]
[420689371,1776458501007,-1170.0,0.00034007,30]
[420689372,1776458501033,-273.0,0.00034007,30]
[420689373,1776458501060,-211.0,0.00034007,30]
[420689374,1776458501085,-572.0,0.00034336,30]
[420689375,1776458501111,-1126.0,0.00034336,30]
[420689376,1776458501137,-1111.11,0.00034687,120]
[420689377,1776458501162,-1444.0,0.00034849,120]
[420689378,1776458501186,-1011.0,0.00034998,30]
[420689379,1776458501211,-1170.0,0.00035007,30]
[420689380,1776458501236,-273.0,0.00035007,30]
[420689381,1776458501262,-211.0,0.00035007,30]
[420689382,1776458501287,-572.0,0.00035336,30]
[420689383,1776458501313,-1126.0,0.00035336,30]
[420689384,1776458501338,-203.0,0.0003538,120]
[420689385,1776458501364,-1111.11,0.00035625,120]
[420689386,1776458501388,-1011.0,0.00035998,30]
[420689387,1776458501413,-1170.0,0.00036007,30]
[420689388,1776458501439,-273.0,0.00036007,30]
[420689389,1776458501463,-211.0,0.00036007,30]
[420689390,1776458501491,-2080.202,0.00036077,44]
[420689391,1776458501517,-181.453,0.00036077,44]
[420689392,1776458501542,-572.0,0.00036336,30]
[420689393,1776458501567,-1126.0,0.00036336,30]
[420689394,1776458501593,-1111.11,0.00036562,120]
[420689395,1776458501618,-163.0,0.0003663,120]
[420689396,1776458501642,-207.0,0.0003663,120]
[420689397,1776458501667,-413.0,0.0003663,120]
[420689398,1776458501693,-1011.0,0.00036998,30]
[420689399,1776458501718,-1170.0,0.00037007,30]
[420689400,1776458501742,-273.0,0.00037007,30]
[420689401,1776458501766,-211.0,0.00037007,30]
[420689402,1776458501790,-572.0,0.00037336,30]
[420689403,1776458501815,-1126.0,0.00037336,30]
[420689404,1776458501839,-1111.11,0.000375,120]
[420689405,1776458501864,-177.6733151,0.00037675,45]
[420689406,1776458501890,-1011.0,0.00037998,30]
[420689407,1776458501916,-1170.0,0.00038007,30]
[420689408,1776458501940,-273.0,0.00038007,30]
[420689409,1776458501964,-211.0,0.00038007,30]
[420689410,1776458501989,-572.0,0.00038336,30]
[420689411,1776458502014,-1126.0,0.00038336,30]
[420689412,1776458502039,-297.001,0.00039004,30]
[420689413,1776458502065,-391.12995735,0.0004,120]
[420689414,1776458502089,-8120.30656052,0.0004,30]
[420689415,1776458502116,-825.0,0.00040018,30]
[420689416,1776458502140,-250.0,0.00040204,30]
[420689417,1776458502165,-250.0,0.00040204,30]
[420689418,1776458502191,-825.0,0.00040441,30]
[420689419,1776458502215,-807.95549075,0.00040767,120]
[420689420,1776458502241,-825.0,0.00040864,60]
[420689421,1776458502268,-191963.0,0.0004095,60]
[420689422,1776458502295,-500.0,0.00041,45]
[420689423,1776458502319,-500.0,0.00041,45]
[420689424,1776458502344,-500.0,0.00041,45]
[420689425,1776458502369,-500.0,0.00041,45]
[420689426,1776458502394,-500.0,0.00041,45]
[420689427,1776458502419,-500.0,0.00041,45]
[420689428,1776458502443,-500.0,0.00041095,120]
[420689429,1776458502466,-500.0,0.00041095,120]
[420689430,1776458502491,-500.0,0.00041095,120]
[420689431,1776458502514,-500.0,0.00041095,120]
[420689432,1776458502539,-500.0,0.00041095,120]
[420689433,1776458502563,-500.0,0.00041095,120]
[420689434,1776458502592,-500.0,0.00041095,120]
[420689435,1776458502616,-500.0,0.00041095,120]
[420689436,1776458502641,-277.1830774,0.00041095,120]
[420689437,1776458502665,-500.0,0.00041095,120]
[420689438,1776458502689,-500.0,0.00041095,120]
[420689439,1776458502714,-500.0,0.00041095,120]
[420689440,1776458502739,-500.0,0.00041095,120]
[420689441,1776458502763,-500.0,0.00041095,120]
[420689442,1776458502788,-637.14011224,0.00041095,120]
[420689443,1776458502815,-825.0,0.00041287,60]
[420689444,1776458502841,-500.0,0.000415,45]
[420689445,1776458502870,-500.0,0.000415,45]
[420689446,1776458502898,-500.0,0.000415,45]
[420689447,1776458502924,-500.0,0.000415,45]
[420689448,1776458502950,-500.0,0.000415,45]
[420689449,1776458502977,-500.0,0.00041577,120]
[420689450,1776458503005,-1199.0,0.00041644,120]
[420689451,1776458503031,-190.88151538,0.00041655,120]
[420689452,1776458503056,-10373.0,0.000417,117]
[420689453,1776458503082,-825.0,0.0004171,60]
[420689454,1776458503107,-150.0,0.00041814,120]
[420689455,1776458503131,-150.0,0.00041814,120]
[420689456,1776458503161,-400.0,0.000419,30]
[420689457,1776458503187,-400.0,0.000419,30]
[420689458,1776458503214,-376.0,0.000419,30]
[420689459,1776458503239,-150.0,0.00041911,90]
[420689460,1776458503265,-150.0,0.00041911,90]
[420689461,1776458503290,-164.29,0.00041911,90]
[420689462,1776458503316,-1000.0,0.00041999,120]
[420689463,1776458503342,-1000.0,0.00041999,120]
[420689464,1776458503368,-941.0,0.00041999,120]
[420689465,1776458503394,-600.0,0.00041999,60]
[420689466,1776458503419,-600.0,0.00041999,60]
[420689467,1776458503445,-564.0,0.00041999,60]
[420689468,1776458503470,-150.0,0.00041999,120]
[420689469,1776458503495,-150.0,0.00041999,120]
[420689470,1776458503521,-173.64782568,0.00041999,120]
[420689471,1776458503547,-500.0,0.00042,45]
[420689472,1776458503573,-500.0,0.00042,120]
[420689473,1776458503610,-500.0,0.00042,45]
[420689474,1776458503637,-500.0,0.00042,45]
[420689475,1776458503662,-21000.0,0.00042,30]
[420689476,1776458503701,-500.0,0.00042,45]
[420689477,1776458503730,-500.0,0.00042,45]
[420689478,1776458503755,-300.0,0.00042,120]
[420689479,1776458503781,-500.0,0.00042,120]
[420689480,1776458503807,-150.0,0.00042088,120]
[420689481,1776458503833,-150.0,0.00042088,120]
[420689482,1776458503858,-48399.000001,0.000421,30]
[420689483,1776458503884,-825.0,0.00042133,60]
[420689484,1776458503910,-150.0,0.00042173,120]
[420689485,1776458503936,-1199.0,0.00042192,120]
[420689486,1776458503963,-10000.0,0.00042192,30]
[420689487,1776458503990,-500.0,0.00042192,120]
[420689488,1776458504016,-500.0,0.00042192,120]
[420689489,1776458504042,-500.0,0.00042192,120]
[420689490,1776458504068,-500.0,0.00042192,120]
[420689491,1776458504093,-640.53610694,0.00042192,120]
[420689492,1776458504118,-150.0,0.00042192,60]
[420689493,1776458504144,-191963.0,0.000423,60]
[420689494,1776458504168,-150.0,0.00042362,120]
[420689495,1776458504193,-150.0,0.00042362,120]
[420689496,1776458504218,-3629.2802,0.00042442,30]
[420689497,1776458504244,-420.0,0.00042466,120]
[420689498,1776458504268,-640.772924,0.00042466,120]
[420689499,1776458504294,-420.0,0.00042466,120]
[420689500,1776458504320,-640.772924,0.00042466,120]
[420689501,1776458504346,-420.0,0.00042466,120]
[420689502,1776458504370,-640.772924,0.00042466,120]
[420689503,1776458504400,-420.0,0.00042466,120]
[420689504,1776458504426,-420.0,0.00042466,120]
[420689505,1776458504453,-640.772924,0.00042466,120]
[420689506,1776458504478,-640.772924,0.00042466,120]
[420689507,1776458504504,-420.0,0.00042466,120]
[420689508,1776458504530,-420.0,0.00042466,120]
[420689509,1776458504556,-420.0,0.00042466,120]
[420689510,1776458504582,-420.0,0.00042466,120]
[420689511,1776458504609,-420.0,0.00042466,120]
[420689512,1776458504637,-420.0,0.00042466,120]
[420689513,1776458504666,-420.0,0.00042466,120]
[420689514,1776458504695,-420.0,0.00042466,120]
[420689515,1776458504723,-420.0,0.00042466,120]
[420689516,1776458504750,-420.0,0.00042466,120]
[420689517,1776458504777,-420.0,0.00042466,120]
[420689518,1776458504804,-420.0,0.00042466,120]
[420689519,1776458504833,-420.0,0.00042466,120]
[420689520,1776458504865,-420.0,0.00042466,120]
[420689521,1776458504894,-420.0,0.00042466,120]
[420689522,1776458504923,-640.772924,0.00042466,120]
[420689523,1776458504950,-640.772924,0.00042466,120]
[420689524,1776458504977,-640.772924,0.00042466,120]
[420689525,1776458505003,-640.772924,0.00042466,120]
[420689526,1776458505031,-640.772924,0.00042466,120]
[420689527,1776458505058,-640.772924,0.00042466,120]
[420689528,1776458505085,-640.772924,0.00042466,120]
[420689529,1776458505111,-640.772924,0.00042466,120]
[420689530,1776458505138,-640.772924,0.00042466,120]
[420689531,1776458505164,-640.772924,0.00042466,120]
[420689532,1776458505191,-640.772924,0.00042466,120]
[420689533,1776458505216,-640.772924,0.00042466,120]
[420689534,1776458505243,-640.772924,0.00042466,120]
[420689535,1776458505269,-640.772924,0.00042466,120]
[420689536,1776458505296,-640.772916,0.00042466,120]
[420689537,1776458505323,-151.0,0.00042466,120]
[420689538,1776458505350,-151.0,0.00042466,120]
[420689539,1776458505377,-151.0,0.00042466,120]
[420689540,1776458505404,-151.0,0.00042466,120]
[420689541,1776458505431,-151.0,0.00042466,120]
[420689542,1776458505458,-151.0,0.00042466,120]
[420689543,1776458505484,-151.0,0.00042466,120]
[420689544,1776458505512,-151.0,0.00042466,120]
[420689545,1776458505540,-151.0,0.00042466,120]
[420689546,1776458505566,-151.0,0.00042466,120]
[420689547,1776458505593,-151.0,0.00042466,120]
[420689548,1776458505620,-151.0,0.00042466,120]
[420689549,1776458505647,-151.0,0.00042466,120]
[420689550,1776458505675,-276.586928,0.00042466,120]
[420689551,1776458505702,-10000.0,0.00042466,30]
[420689552,1776458505729,-295.04100014,0.00042466,60]
[420689553,1776458505756,-500.0,0.000425,45]
[420689554,1776458505783,-500.0,0.000425,45]
[420689555,1776458505810,-500.0,0.000425,45]
[420689556,1776458505837,-500.0,0.000425,45]
[420689557,1776458505865,-500.0,0.000425,45]
[420689558,1776458505891,-192.86,0.000425,46]
[420689559,1776458505917,-16165.76921077,0.000425,30]
[420689560,1776458505943,-500.0,0.000425,120]
[420689561,1776458505970,-825.0,0.00042557,90]
[420689562,1776458505996,-500.0,0.00042587,120]
[420689563,1776458506024,-237.67289897,0.00042587,120]
[420689564,1776458506052,-151.0,0.000426,120]
[420689565,1776458507719,-151.0,0.000426,120]
[420689566,1776458507747,-151.0,0.000426,120]
[420689567,1776458507772,-151.0,0.000426,120]
[420689568,1776458507799,-151.0,0.000426,120]
[420689569,1776458507824,-211.9,0.000426,56]
[420689570,1776458507852,-270.0,0.00042601,30]
[420689571,1776458507880,-270.0,0.00042601,120]
[420689572,1776458507906,-257.0,0.00042601,30]
[420689573,1776458507935,-257.0,0.00042601,120]
[420689574,1776458507960,-1000.0,0.00042602,30]
[420689575,1776458507993,-1037.0,0.00042602,30]
[420689576,1776458508020,-1075.369,0.00042602,30]
[420689577,1776458508048,-1115.157653,0.00042602,30]
[420689578,1776458508077,-1156.41848616,0.00042602,30]
[420689579,1776458508104,-1199.20597015,0.00042602,30]
[420689580,1776458508131,-900.0,0.00042603,30]
[420689581,1776458508158,-900.0,0.00042603,30]
[420689582,1776458508185,-900.0,0.00042603,30]
[420689583,1776458508210,-900.0,0.00042603,30]
[420689584,1776458508236,-900.0,0.00042603,30]
[420689585,1776458508263,-900.0,0.00042603,30]
[420689586,1776458508290,-900.0,0.00042603,30]
[420689587,1776458508317,-900.0,0.00042603,30]
[420689588,1776458508343,-900.0,0.00042603,30]
[420689589,1776458508369,-900.0,0.00042603,30]
[420689590,1776458508396,-900.0,0.00042603,30]
[420689591,1776458508421,-900.0,0.00042603,30]
[420689592,1776458508451,-900.0,0.00042603,30]
[420689593,1776458508478,-900.0,0.00042603,30]
[420689594,1776458508504,-900.0,0.00042603,30]
[420689595,1776458508530,-900.0,0.00042603,30]
[420689596,1776458508557,-900.0,0.00042603,30]
[420689597,1776458508584,-900.0,0.00042603,30]
[420689598,1776458508612,-900.0,0.00042603,30]
[420689599,1776458508640,-900.0,0.00042603,30]
[420689600,1776458508667,-900.0,0.00042603,30]
[420689601,1776458508692,-900.0,0.00042603,30]
[420689602,1776458508724,-900.0,0.00042603,30]
[420689603,1776458508752,-900.0,0.00042603,30]
[420689604,1776458508780,-900.0,0.00042603,30]
[420689605,1776458508807,-900.0,0.00042603,30]
[420689606,1776458508835,-900.0,0.00042603,30]
[420689607,1776458508864,-900.0,0.00042603,30]
[420689608,1776458508892,-900.0,0.00042603,30]
[420689609,1776458508920,-900.0,0.00042603,30]
[420689610,1776458508947,-900.0,0.00042603,30]
[420689611,1776458508974,-900.0,0.00042603,30]
[420689612,1776458509005,-900.0,0.00042603,30]
[420689613,1776458509033,-900.0,0.00042603,30]
[420689614,1776458509061,-900.0,0.00042603,30]
[420689615,1776458509088,-900.0,0.00042603,30]
[420689616,1776458509118,-900.0,0.00042603,30]
[420689617,1776458509144,-900.0,0.00042603,30]
[420689618,1776458509170,-900.0,0.00042603,30]
[420689619,1776458509198,-900.0,0.00042603,30]
[420689620,1776458509226,-900.0,0.00042603,30]
[420689621,1776458509252,-900.0,0.00042603,30]
[420689622,1776458509280,-900.0,0.00042603,30]
[420689623,1776458509308,-900.0,0.00042603,30]
[420689624,1776458509335,-900.0,0.00042603,30]
[420689625,1776458509363,-900.0,0.00042603,30]
[420689626,1776458509392,-215.0,0.00042603,30]
[420689627,1776458509419,-500.0,0.00042603,120]
[420689628,1776458509447,-500.0,0.00042603,120]
[420689629,1776458509474,-500.0,0.00042603,120]
[420689630,1776458509500,-542.0,0.00042603,120]
[420689631,1776458509539,-200.0,0.00042629,120]
[420689632,1776458509570,-500.0,0.00042629,120]
[420689633,1776458509597,-518.5,0.00042629,120]
[420689634,1776458509820,-537.6845,0.00042629,120]
[420689635,1776458509850,-151.0,0.00042629,120]
[420689636,1776458509883,-557.5788265,0.00042629,120]
[420689637,1776458509911,-151.0,0.00042629,120]
[420689638,1776458509939,-578.20924308,0.00042629,120]
[420689639,1776458509967,-151.0,0.00042629,120]
[420689640,1776458509993,-151.0,0.00042629,120]
[420689641,1776458510019,-151.0,0.00042629,120]
[420689642,1776458510045,-251.0,0.00042629,120]
[420689643,1776458510072,-260.287,0.00042629,120]
[420689644,1776458510098,-406.07913414,0.00042629,120]
[420689645,1776458510127,-520.0,0.00042629,120]
[420689646,1776458510155,-10000.0,0.00042629,120]
[420689647,1776458510184,-500.0,0.00042629,120]
[420689648,1776458510211,-151.0,0.00042629,120]
[420689649,1776458510238,-1030.0,0.00042629,120]
[420689650,1776458510271,-6888.0,0.00042629,120]
[420689651,1776458510299,-151.0,0.00042629,120]
[420689652,1776458510327,-10370.0,0.00042629,120]
[420689653,1776458510355,-500.0,0.00042629,120]
[420689654,1776458510386,-200.0,0.00042629,120]
[420689655,1776458510412,-200.0,0.00042629,120]
[420689656,1776458510443,-156.587,0.00042629,120]
[420689657,1776458510471,-500.0,0.00042629,120]
[420689658,1776458510501,-1068.11,0.00042629,120]
[420689659,1776458510529,-539.24,0.00042629,120]
[420689660,1776458510557,-500.0,0.00042629,120]
[420689661,1776458510586,-7142.856,0.00042629,120]
[420689662,1776458510615,-151.0,0.00042629,120]
[420689663,1776458510644,-10753.69,0.00042629,120]
[420689664,1776458510673,-200.0,0.00042629,120]
[420689665,1776458510702,-500.0,0.00042629,120]
[420689666,1776458510729,-200.0,0.00042629,120]
[420689667,1776458510757,-162.380719,0.00042629,120]
[420689668,1776458510784,-518.5,0.00042629,120]
[420689669,1776458510812,-1107.63007,0.00042629,120]
[420689670,1776458510839,-500.0,0.00042629,120]
[420689671,1776458510866,-7407.141672,0.00042629,120]
[420689672,1776458510892,-11151.57653,0.00042629,120]
[420689673,1776458510918,-200.0,0.00042629,120]
[420689674,1776458510945,-200.0,0.00042629,120]
[420689675,1776458510972,-500.0,0.00042629,120]
[420689676,1776458510998,-559.19188,0.00042629,120]
[420689677,1776458511025,-151.0,0.00042629,120]
[420689678,1776458511052,-537.6845,0.00042629,120]
[420689679,1776458511081,-1148.61238259,0.00042629,120]
[420689680,1776458511109,-500.0,0.00042629,120]
[420689681,1776458511137,-7681.20591386,0.00042629,120]
[420689682,1776458511164,-168.3888056,0.00042629,120]
[420689683,1776458511190,-11564.18486161,0.00042629,120]
[420689684,1776458511216,-200.0,0.00042629,120]
[420689685,1776458511242,-200.0,0.00042629,120]
[420689686,1776458511271,-500.0,0.00042629,120]
[420689687,1776458511299,-579.88197956,0.00042629,120]
[420689688,1776458511327,-151.0,0.00042629,120]
[420689689,1776458511353,-500.0,0.00042629,120]
[420689690,1776458511378,-7965.41053268,0.00042629,120]
[420689691,1776458511404,-1191.11104075,0.00042629,120]
[420689692,1776458511429,-174.61919142,0.00042629,120]
[420689693,1776458511455,-200.0,0.00042629,120]
[420689694,1776458511480,-500.0,0.00042629,120]
[420689695,1776458511506,-601.3376128,0.00042629,120]
[420689696,1776458511531,-557.5788265,0.00042629,120]
[420689697,1776458511558,-151.0,0.00042629,120]
[420689698,1776458511585,-8260.13072239,0.00042629,120]
[420689699,1776458511611,-200.0,0.00042629,120]
[420689700,1776458511637,-200.0,0.00042629,120]
[420689701,1776458511663,-646.65982734,0.00042629,120]
[420689702,1776458511689,-578.20924308,0.00042629,120]
[420689703,1776458511715,-151.0,0.00042629,120]
[420689704,1776458511743,-305.62483672,0.00042629,120]
[420689705,1776458511769,-200.0,0.00042629,120]
[420689706,1776458511795,-200.0,0.00042629,120]
[420689707,1776458511820,-599.60298507,0.00042629,120]
[420689708,1776458511847,-151.0,0.00042629,120]
[420689709,1776458511874,-200.0,0.00042629,120]
[420689710,1776458511899,-621.78829552,0.00042629,120]
[420689711,1776458511927,-204.87164858,0.00042629,120]
[420689712,1776458511952,-151.19296277,0.00042629,120]
[420689713,1776458511978,-151.0,0.00042629,120]
[420689714,1776458512004,-200.0,0.00042629,120]
[420689715,1776458512029,-1257.54284537,0.00042629,120]
[420689716,1776458512055,-644.79446246,0.00042629,120]
[420689717,1776458512081,-10000.0,0.00042629,120]
[420689718,1776458512106,-160.0,0.00042629,120]
[420689719,1776458512132,-220.0,0.00042629,120]
[420689720,1776458512159,-151.0,0.00042629,120]
[420689721,1776458512185,-200.0,0.00042629,120]
[420689722,1776458512212,-160.0,0.00042629,120]
[420689723,1776458512239,-668.65185757,0.00042629,120]